[Event "European Women-ch 2023"]
[Site "Petrovac"]
[Date "2023.03.20"]
[Round "3.13"]
[White "Petrova, Irina"]
[Black "Guichard, Pauline"]
[Result "0-1"]
[ECO "C24"]
[WhiteElo "2123"]
[BlackElo "2379"]
[Annotator "TA"]
[PlyCount "148"]
[EventDate "2023.03.15"]
[EventType "swiss"]
[EventCountry "MNE"]
[SourceTitle "playchess.com"]
[Source "ChessBase"]
[SourceQuality "1"]
[TimeControl "40/5400+30:1800+30"]

{[%evp 12,148,38,42,40,51,49,22,32,24,27,26,26,13,13,16,50,43,56,33,53,14,14,13,6,8,10,7,6,14,14,11,25,2,7,-5,-4,-14,0,0,0,0,13,0,-4,-2,-2,-4,-3,-6,0,0,0,-10,-11,-112,-98,-132,-130,-130,-124,-131,-132,-215,-197,-179,-69,-68,0,-133,-117,-148,-139,-195,-147,-191,-31,-20,-20,-43,-46,-79,-63,-267,-267,-267,-267,-729,-729,-729,-303,-462,-455,-729,-729,-729,-729,-729,-620,-736,-729,-695,-704,-655,-477,-249,-511,-701,-351,-941,-361,-4859,-4744,-5022,-5022,-29974,-29976,-29975,-29976,-29982,-29983,-29983,-29984,-29989,-29982,-29981,-29980,-29991,-29981,-29981,-29982,-29981,-29982,-29985,-29986,-29988,-29987,-29989,-29990]} 1. e4 {[%emt 0:00:02]} e5 {[%emt 0:00:05]} 2. Nf3 {[%emt 0:00:08]} Nc6 {[%emt 0:00:06]} 3. Bc4 {[%emt 0:00:08]} Nf6 {[%emt 0:00:13]} 4. d3 {[%emt 0:00:14][%cal Bd2d3,Bd3d4][%mdl 32]} d5 {[%emt 0:01:44]} 5. exd5 {[%emt 0:00:29]} Nxd5 {[%emt 0:00:06]} 6. O-O {[%emt 0:01:02]} Be7 {[%emt 0:00:08]} 7. Re1 {[%emt 0:01:31]} f6 $1 {[%emt 0:00:09][%mdl 4] outshines the older 7...Bg4. C24: Bishop's Opening: 2...Nf6.} 8. d4 {[%emt 0:08:52][%cal Rd4e5]} Nb6 {[%emt 0:00:11][%csl LRc4,LRd4]} 9. Bb5 {[%emt 0:00:36]} O-O {[%emt 0:15:59][%cal Rc6d4] The position is equal.} 10. dxe5 {[%emt 0:04:54]} Qxd1 {[%emt 0:02:48]} 11. Rxd1 {[%emt 0:00:07]} Nxe5 {[%emt 0:00:23]} 12. Nxe5 {[%emt 0:05:38]} fxe5 {[%emt 0:00:07]} 13. Nc3 {[%emt 0:00:12] [#]} Bg4 $146 {[%emt 0:08:18]} ({Predecessor:} 13... Bf5 14. Bd3 Bxd3 15. Rxd3 Rad8 16. Rxd8 Rxd8 17. Kf1 Nd5 18. Nxd5 Rxd5 19. Be3 a6 {½-½ Martirosyan,H (2666)-Yakubboev,N (2656) Poikovsky Karpov 21st 2022 (4)}) 14. Re1 {[%emt 0:06:52]} Bh4 {[%emt 0:10:15]} 15. Be3 {[%emt 0:04:40]} Bf5 {[%emt 0:15:09]} 16. Na4 {[%emt 0:25:00]} Bxc2 {[%emt 0:08:51]} 17. Nxb6 {[%emt 0:00:08]} cxb6 {[%emt 0:01:38]} (17... axb6 18. Rec1 Ba4 19. Bxa4 Rxa4 20. b3 $16 (20. Rxc7 Rf7 $16)) 18. Bc4+ {[%emt 0:00:10]} Kh8 {[%emt 0:00:09]} 19. Bd5 {[%emt 0:00:04]} Bd3 {[%emt 0:12:05]} 20. Bxb7 {[%emt 0:03:08]} Rab8 {[%emt 0:00:05]} 21. Bd5 {[%emt 0:00:40]} Rfd8 {[%emt 0:00:54]} 22. Bb3 {[%emt 0:01:16]} e4 {[%emt 0:00:06]} 23. Bf4 {[%emt 0:01:23]} Rbc8 {[%emt 0:00:25]} 24. Be5 {[%emt 0:00:20]} Rc5 {[%emt 0:01:16]} 25. Bc3 {[%emt 0:00:24]} Rf5 {[%emt 0:00:20]} 26. g3 {[%emt 0:00:25]} Be7 {[%emt 0:00:57]} 27. Be6 {[%emt 0:04:38]} Rff8 {[%emt 0:01:46]} 28. b4 {[%emt 0:00:49] Dodges Bc5} Rd6 $36 {[%emt 0:02:12][%mdl 2048] Black is pushing.} 29. Bb3 {[%emt 0:01:11]} Rc6 {[%emt 0:06:23]} 30. Bd2 {[%emt 0:00:13]} h6 {[%emt 0:06:52]} 31. Rac1 {[%emt 0:01:40]} Rcf6 {[%emt 0:00:24]} 32. Rc7 {[%emt 0:03:22]} Rxf2 {[%emt 0:00:36]} 33. Bf4 {[%emt 0:00:58]} (33. Be3 $11 {remains equal.} Rf1+ 34. Rxf1 Rxf1+ 35. Kg2) 33... R2xf4 $17 {[%emt 0:01:17]} ({Of course not} 33... Bxb4 $6 34. Kxf2 g5 35. Rec1 gxf4 36. R1c6 fxg3+ 37. Kxg3 Be1+ 38. Kh3 Bf1+ 39. Kg4 Be2+ 40. Kh3 Bf1+ 41. Kg4 Be2+ 42. Kh3 Bf1+ $11) 34. gxf4 {[%emt 0:00:11]} Bxb4 {[%emt 0:00:07]} 35. Rec1 {[%emt 0:00:42]} Bc5+ {[%emt 0:00:43] This pair of bishops is nice.} 36. Kg2 {[%emt 0:00:59]} Rxf4 {[%emt 0:01:19]} 37. Bc4 {[%emt 0:04:26]} (37. Rf7 $17 Rxf7 38. Bxf7) 37... Rf2+ {[%emt 0:01:28]} 38. Kg3 {[%emt 0:00:08]} Rf3+ {[%emt 0:00:31]} (38... Bxc4 $19 39. Rxc4 e3 40. R4xc5 bxc5) 39. Kg4 $15 {[%emt 0:00:32]} Rf2 {[%emt 0:01:36]} (39... a5 $15 40. Bxd3 Rxd3) 40. Rxa7 {[%emt 0:00:00]} (40. Kg3 $1 $11) 40... Rxh2 $17 {[%emt 0:00:00] Black is much more active.} 41. a4 {[%emt 0:08:13]} Kh7 {[%emt 0:12:17]} 42. Ra8 {[%emt 0:04:42]} (42. Bxd3 $17 {was called for.} h5+ 43. Kf4 exd3 44. Rd1) 42... Kg6 {[%emt 0:07:57]} (42... Bd6 $19 {Hoping for ...Kg6.} 43. Bxd3 h5+ 44. Kf5 exd3) 43. Rd8 {[%emt 0:07:36]} Rd2 $2 {[%emt 0:05:29]} (43... Bxc4 $1 $19 44. Rxc4 e3) 44. Bxd3 $15 {[%emt 0:03:37]} exd3 {[%emt 0:00:06][%cal Be4d3,Bd3d2][%mdl 4128] Endgame KRR-KRB} 45. a5 {[%emt 0:01:31]} Rc2 {[%emt 0:02:37]} 46. Ra1 {[%emt 0:00:54] Black must now prevent a6.} bxa5 {[%emt 0:03:05] Threatens to win with ...d2.} 47. Rxa5 $2 {[%emt 0:01:01] [#] This costs White the game.} (47. Rxd3 $15 Bb4 48. Rg1) 47... d2 $1 $19 {[%emt 0:01:18][%cal Oc5d4] Strongly threatening ...Bd4!} 48. Kf3 {[%emt 0:01:00]} Kh7 {[%emt 0:01:01]} 49. Ra4 $2 {[%emt 0:01:47]} (49. Rb5 Be7 50. Rd7) 49... Rc3+ {[%emt 0:01:12]} 50. Ke2 {[%emt 0:01:06]} Be3 {[%emt 0:00:04]} 51. Re4 {[%emt 0:01:54]} Bg5 {[%emt 0:00:08]} 52. Rd7 {[%emt 0:00:10]} (52. Rd5 $142 Rc1 53. Red4) 52... Rc1 {[%emt 0:00:32]} 53. Red4 {[%emt 0:00:06]} Re1+ {[%emt 0:00:04]} 54. Kf3 {[%emt 0:00:09]} Rf1+ {[%emt 0:00:47]} 55. Kg4 {[%emt 0:01:30]} Rg1+ {[%emt 0:01:06]} 56. Kf3 {[%emt 0:00:29]} h5 {[%emt 0:00:40]} 57. Kf2 {[%emt 0:01:01]} Re1 {[%emt 0:00:31] ( -> ...Be3+)} 58. R4d5 {[%emt 0:00:31] [#]} (58. Rd3 $142 Kh6 59. Kg3) 58... Kh6 $2 {[%emt 0:00:40]} (58... Be3+ $1 59. Kf3 Kh6 60. R7d6+ g6) 59. Kg2 {[%emt 0:01:31]} h4 {[%emt 0:00:47]} 60. Rd3 $2 {[%emt 0:03:49]} (60. Rd4) 60... Kh5 $2 {[%emt 0:00:42]} (60... Bf4 61. Kf3 g5) 61. R7d5 $2 {[%emt 0:00:18]} (61. Kf3 Re5 62. R7d5 Rxd5 63. Rxd5) 61... Kg4 {[%emt 0:01:01] ...Bf4 would be deadly.} 62. R5d4+ {[%emt 0:09:38]} Bf4 {[%emt 0:00:21]} 63. Kf2 {[%emt 0:02:37]} h3 {[%emt 0:00:55] Black mates.} 64. Rg3+ {[%emt 0:00:19]} Kf5 {[%emt 0:00:14]} 65. Rf3 {[%emt 0:01:06]} g5 {[%emt 0:00:41]} (65... d1=B $2 66. Rfxf4+ Ke5 67. Kxe1 $18) 66. Rxd2 {[%emt 0:01:20]} h2 {[%emt 0:00:16]} 67. Rd5+ {[%emt 0:05:22]} Ke4 {[%emt 0:00:56]} 68. Rfd3 {[%emt 0:00:15]} Be5 {[%emt 0:00:42]} ({Much less strong is} 68... h1=R 69. R3d4#) 69. Rd8 {[%emt 0:01:58]} Rf1+ {[%emt 0:00:25][%mdl 64] Decoy, Promotion} 70. Kxf1 {[%emt 0:01:14]} h1=Q+ {[%emt 0:00:05]} ({Not} 70... h1=R+ 71. Kg2 Rh2+ 72. Kg1 $11) 71. Ke2 {[%emt 0:00:02]} Qg2+ {[%emt 0:00:24]} 72. Ke1 {[%emt 0:00:11]} g4 {[%emt 0:00:46][%cal Bg5g4,Bg4g3][%mdl 32]} 73. Kd1 {[%emt 0:01:03]} Qf1+ {[%emt 0:00:28]} 74. Kc2 {[%emt 0:00:05]} g3 {[%emt 0:00:24] Weighted Error Value: White=0.50/Black=0.34} 0-1

[Event "European Women-ch 2023"]
[Site "Petrovac"]
[Date "2023.03.20"]
[Round "3.14"]
[White "Danielian, Elina"]
[Black "Krasteva, Beloslava"]
[Result "1-0"]
[ECO "E17"]
[WhiteElo "2431"]
[BlackElo "2292"]
[Annotator "TA"]
[PlyCount "88"]
[EventDate "2023.03.15"]
[EventType "swiss"]
[EventCountry "MNE"]
[SourceTitle "playchess.com"]
[Source "ChessBase"]
[SourceQuality "1"]
[TimeControl "40/5400+30:1800+30"]

{[%evp 12,88,22,8,14,14,14,12,15,8,20,8,11,14,28,9,12,10,9,8,31,29,27,7,12,0,0,-70,101,97,97,101,119,101,123,104,156,130,160,153,252,252,272,271,256,252,260,204,238,162,188,131,122,117,117,105,365,351,347,358,322,304,218,245,585,558,745,724,714,708,679,416,1539,1483,1277,795,29997,29998,29998]} 1. d4 {[%emt 0:00:04]} Nf6 {[%emt 0:00:31]} 2. c4 {[%emt 0:00:09]} e6 {[%emt 0:00:08]} 3. Nf3 {[%emt 0:00:10]} b6 {[%emt 0:01:02]} 4. g3 {[%emt 0:00:08]} Bb7 {[%emt 0:03:25]} 5. Bg2 {[%emt 0:00:13]} Be7 {[%emt 0:00:12]} 6. O-O {[%emt 0:00:17]} O-O {[%emt 0:00:07]} 7. Re1 {[%emt 0:02:20]} Ne4 {[%emt 0:03:09] E17: Queen's Indian: 4 g3 Bb7 5 Bg2 Be7.} 8. Nfd2 {[%emt 0:02:02]} d5 {[%emt 0:01:01]} 9. cxd5 {[%emt 0:04:34] 9.cxd5 scores better than 9.Nxe4.} exd5 {[%emt 0:00:32] The position is equal.} 10. Nxe4 {[%emt 0:01:27]} dxe4 {[%emt 0:00:05]} 11. Nc3 {[%emt 0:00:03]} f5 {[%emt 0:01:09]} 12. Bf4 {[%emt 0:00:38]} Nc6 {[%emt 0:10:40]} 13. Qb3+ {[%emt 0:01:50]} Kh8 {[%emt 0:00:16]} 14. Red1 {[%emt 0:01:43]} Bd6 {[%emt 0:10:23]} (14... Nxd4 15. Qc4 c5 16. e3 $16) 15. Bxd6 {[%emt 0:01:24] [#]} Qxd6 $146 {[%emt 0:03:04]} ({Predecessor:} 15... cxd6 16. d5 Ne5 17. Nb5 Ba6 18. Nd4 Bc4 19. Qe3 Ng4 20. Qa3 Qd7 21. f3 Nf6 {½-½ Mesquita,F (2371)-Sanchez,M (2369) WZ-ch GM/18/05 email 2018}) 16. Nb5 {[%emt 0:30:07]} Qd7 {[%emt 0:02:06]} 17. Rac1 {[%emt 0:14:10] White wants to play d5.} (17. d5 $5 {[%cal Rd5c6]} Na5 18. Qb4 $11) 17... Ba6 {[%emt 0:07:38]} 18. a4 {[%emt 0:04:41]} Na5 {[%emt 0:07:36]} 19. Qb4 {[%emt 0:00:09]} (19. Qc2 $11) 19... Nc6 $2 {[%emt 0:07:26]} (19... c6 $15 20. Nc3 Qf7) 20. Qc3 $16 {[%emt 0:03:38]} Bxb5 {[%emt 0:01:41]} 21. axb5 {[%emt 0:00:04]} Na5 {[%emt 0:01:05]} 22. Qxc7 {[%emt 0:06:14]} Qxb5 {[%emt 0:00:11]} 23. e3 {[%emt 0:01:56]} Qd5 {[%emt 0:04:29]} (23... Qb3 $142) 24. Bf1 {[%emt 0:00:55] [#] aiming for b4.} Rf7 {[%emt 0:03:15]} 25. Qf4 {[%emt 0:06:20] Strongly threatening b4.} Qd7 {[%emt 0:06:59]} (25... Qd8 $16 {might work better.} 26. Rc3 Nb7) 26. Rc3 $18 {[%emt 0:03:44]} Nb7 {[%emt 0:09:50]} 27. Rdc1 {[%emt 0:00:10] Rc7 is the strong threat.} Nd6 {[%emt 0:01:44] [#]} 28. Rc7 $1 {[%emt 0:05:14][%mdl 512]} Qe6 {[%emt 0:00:31]} 29. R7c6 {[%emt 0:02:08]} Rd7 {[%emt 0:01:18]} 30. Ba6 {[%emt 0:01:53] And now Bc8 would win.} Qe7 {[%emt 0:02:28]} 31. h4 {[%emt 0:00:22]} (31. Qe5 $18 {Qxe7 would be deadly.} Qf8 32. Qe6) 31... h6 $16 {[%emt 0:01:29]} 32. h5 $36 {[%emt 0:01:00][%mdl 2048] Threatens to win with Bc8. White is in control. White is more active.} Rf8 {[%emt 0:00:52]} 33. Qe5 {[%emt 0:01:24] Hoping for Qxe7.} Qxe5 {[%emt 0:04:20][%mdl 8192] Loses the game.} (33... Rfd8 $16) 34. dxe5 $18 {[%emt 0:00:01]} Ne8 {[%emt 0:00:34]} 35. Rc8 {[%emt 0:01:42]} Re7 {[%emt 0:01:14]} 36. Ra8 {[%emt 0:00:06]} Rxe5 {[%emt 0:00:46]} 37. Rcc8 {[%emt 0:00:06]} ({But not} 37. Rxa7 $6 Nf6 $16) 37... b5 $2 {[%emt 0:01:14]} (37... Re7 $2 38. Bb5 $18) (37... g5 38. Rc6 (38. Rxa7 Ra5 $18) (38. hxg6 Kg7 $18) 38... Rf7) 38. Rab8 {[%emt 0:01:26]} (38. Rxa7 Rg8 39. b4 Nf6 $18) 38... Kg8 {[%emt 0:01:50]} 39. Bxb5 {[%emt 0:00:07]} ({Weaker is} 39. Rxb5 Rxb5 40. Bxb5 Nd6 41. Bc4+ Nxc4 42. Rxc4 Kf7 $11) 39... Kf7 {[%emt 0:00:20]} 40. Bc4+ {[%emt 0:00:00]} Kf6 {[%emt 0:00:00]} 41. Kg2 {[%emt 0:02:54]} Ke7 {[%emt 0:06:34]} (41... Kg5 $142 42. Bb5 Kxh5 43. Bxe8+ Kg5) 42. Rb7+ {[%emt 0:04:32]} Kd6 {[%emt 0:04:10]} 43. Bb5 {[%emt 0:01:36]} Rg8 {[%emt 0:04:29]} 44. Rc6+ {[%emt 0:02:28]} Kd5 {[%emt 0:01:45] Weighted Error Value: White=0.24 (precise) /Black=0.59} 1-0

[Event "European Women-ch 2023"]
[Site "Petrovac"]
[Date "2023.03.20"]
[Round "3.14"]
[White "Balajayeva, Khanim"]
[Black "Lehaci, Miruna-Daria"]
[Result "1-0"]
[ECO "D31"]
[WhiteElo "2372"]
[BlackElo "2202"]
[Annotator "TA"]
[PlyCount "73"]
[EventDate "2023.03.15"]
[EventType "swiss"]
[EventCountry "MNE"]
[SourceTitle "playchess.com"]
[Source "ChessBase"]
[SourceQuality "1"]
[TimeControl "40/5400+30:1800+30"]

{[%evp 9,73,21,18,16,25,25,26,34,27,25,25,21,39,35,33,35,30,26,42,38,200,156,181,167,217,212,198,200,449,446,444,418,416,418,397,394,378,380,467,456,447,448,472,481,472,487,504,494,512,501,479,489,521,507,583,550,600,600,861,843,1154,1135,1422,1378,5106,4902]} 1. c4 {[%emt 0:00:02]} e6 {[%emt 0:00:06]} 2. Nc3 {[%emt 0:00:27]} d5 {[%emt 0:00:07]} 3. d4 {[%emt 0:00:30]} a6 {[%emt 0:00:08]} 4. cxd5 {[%emt 0:00:40]} exd5 {[%emt 0:00:04]} 5. Bf4 {[%emt 0:01:35]} Nf6 {[%emt 0:01:01]} 6. e3 {[%emt 0:01:38] D31: Queen's Gambit Declined: Semi-Slav without ...Nf6 (+ Marshall Gambit and Noteboom) and Exchange Variation lines without ...Nf6.} c5 {[%emt 0:00:23]} 7. Nge2 {[%emt 0:10:16]} Nc6 {[%emt 0:03:07]} 8. g3 {[%emt 0:00:14] White has an edge.} cxd4 {[%emt 0:00:56]} 9. Nxd4 {[%emt 0:00:27]} Bg4 {[%emt 0:07:45] [#]} 10. Be2 $146 {[%emt 0:00:39]} ({Predecessor:} 10. Qd3 Nxd4 11. Qxd4 Bf3 12. Rg1 Rc8 13. Be2 Bxe2 14. Kxe2 Be7 15. Rad1 O-O 16. Be5 {1-0 Kantor,G (2533)-Kozusek,D (2323) Riga Tech op-A 2021 (3)}) 10... Bxe2 {[%emt 0:01:47]} 11. Ncxe2 {[%emt 0:02:03]} Bb4+ {[%emt 0:03:16]} 12. Kf1 {[%emt 0:00:35]} O-O {[%emt 0:06:07]} 13. Kg2 {[%emt 0:00:46]} Qe7 {[%emt 0:02:49]} 14. Rc1 {[%emt 0:10:25]} Nd8 $2 {[%emt 0:16:21] [#] This move loses the game for Black.} (14... Rac8 $14) 15. Qa4 {[%emt 0:14:51] And now Rc7 would win.} Nh5 {[%emt 0:12:10]} 16. a3 {[%emt 0:03:14]} Bd2 {[%emt 0:08:45]} (16... Nxf4+ {keeps fighting.} 17. Nxf4 Bc5) 17. Rcd1 {[%emt 0:03:19]} b5 {[%emt 0:06:15]} 18. Nxb5 {[%emt 0:01:14]} Qb7 $2 {[%emt 0:01:53] [#]} (18... axb5 19. Qxa8 Qe4+ 20. f3 Nxf4+ 21. Nxf4 Qc2) 19. Nbd4 $18 {[%emt 0:09:35]} Nxf4+ {[%emt 0:00:19]} 20. gxf4 {[%emt 0:00:25]} ({Don't take} 20. Nxf4 Qxb2 21. Nxd5 Qb7 $18) 20... Qxb2 {[%emt 0:00:54]} 21. Rb1 {[%emt 0:00:25]} Qa2 {[%emt 0:00:37]} 22. Qb3 {[%emt 0:00:20]} Qxb3 {[%emt 0:02:37]} 23. Nxb3 {[%emt 0:00:03] A dynamic duo of knights.} ({Less strong is} 23. Rxb3 Re8 24. Rd1 Ba5 $16) 23... d4 {[%emt 0:03:18]} 24. Nxd2 {[%emt 0:00:46] White is clearly winning.} dxe3 {[%emt 0:00:04]} 25. fxe3 {[%emt 0:00:07]} Re8 {[%emt 0:00:02]} 26. Kf3 {[%emt 0:00:50]} Ne6 {[%emt 0:00:05]} 27. Nb3 {[%emt 0:00:53]} a5 {[%emt 0:00:06]} 28. Ned4 {[%emt 0:00:27]} Nc7 {[%emt 0:00:05]} 29. Rbc1 {[%emt 0:04:34]} Nd5 {[%emt 0:00:12]} 30. Rhe1 {[%emt 0:01:17]} Nf6 {[%emt 0:00:23]} 31. a4 {[%emt 0:00:47][%cal Ba3a4,Ba4b5,Bb5b6,Bb6b7][%mdl 32]} Ne4 {[%emt 0:00:31]} 32. Nc5 {[%emt 0:01:44]} Nd6 {[%emt 0:00:05]} 33. Nb5 {[%emt 0:00:19]} Nxb5 {[%emt 0:00:28]} 34. axb5 {[%emt 0:00:03]} a4 {[%emt 0:00:05]} 35. b6 {[%emt 0:00:37]} Ra5 {[%emt 0:00:05]} 36. b7 {[%emt 0:00:13]} a3 {[%emt 0:00:24]} 37. Nd7 {[%emt 0:00:16] Weighted Error Value: White=0.04 (flawless) /Black=0.40} 1-0

[Event "European Women-ch 2023"]
[Site "Petrovac"]
[Date "2023.03.20"]
[Round "3.14"]
[White "Goriachkina, Oksana"]
[Black "Allahverdiyeva, Ayan"]
[Result "0-1"]
[ECO "E15"]
[WhiteElo "1759"]
[BlackElo "2124"]
[Annotator "TA"]
[PlyCount "88"]
[EventDate "2023.03.15"]
[EventType "swiss"]
[EventCountry "MNE"]
[SourceTitle "playchess.com"]
[Source "ChessBase"]
[SourceQuality "1"]
[TimeControl "40/5400+30:1800+30"]

{[%evp 9,88,8,8,8,8,8,8,8,16,0,0,0,0,11,10,-31,-29,-50,-51,-44,-30,-54,-45,-90,-58,-102,-84,-79,-69,-73,-85,-98,-104,-131,-122,-143,-145,-121,-140,-200,-121,-208,-151,-149,-139,-147,-127,-140,-135,-162,-152,-171,-145,-156,-106,-213,-169,-286,-287,-281,-270,-418,-417,-386,-410,-391,-359,-615,-615,-604,-579,-604,-557,-612,-612,-620,-592,-586,-565,-525,-513]} 1. d4 {[%emt 0:00:02]} Nf6 {[%emt 0:00:10]} 2. c4 {[%emt 0:00:05]} e6 {[%emt 0:00:03]} 3. Nf3 {[%emt 0:00:10]} b6 {[%emt 0:00:04]} 4. g3 {[%emt 0:00:10]} Ba6 {[%emt 0:00:07]} 5. Qc2 {[%emt 0:00:04]} c5 {[%emt 0:00:31] [#]} 6. d5 $1 {[%emt 0:00:05] Wards off Nc6. E15: Queen's Indian: 4 g3 sidelines, 4 g3 Ba6 and 4 g3 Bb7 early deviations.} exd5 {[%emt 0:00:04]} 7. cxd5 {[%emt 0:00:03]} Bb7 {[%emt 0:00:49]} 8. Bg2 {[%emt 0:00:06] The position is equal.} Nxd5 {[%emt 0:00:05]} 9. O-O {[%emt 0:00:28] Black must now prevent Ng5.} Be7 {[%emt 0:00:17] Wards off Ng5} (9... Nc6 $5) 10. Rd1 {[%emt 0:12:24]} Nc6 {[%emt 0:00:14][%cal Oe8g8]} 11. a3 {[%emt 0:00:04] 11.Qf5 is setting a new trend.} ({Reject} 11. Rxd5 Nb4 12. Qd1 Bxd5 $17) 11... Nc7 {[%emt 0:00:16]} 12. e4 {[%emt 0:05:52]} d6 {[%emt 0:17:36]} 13. Nc3 {[%emt 0:36:13][%cal Ob2b4]} O-O {[#]} 14. Bf4 $146 {[%emt 0:00:00]} ({Predecessor:} 14. Be3 Qc8 15. Rd2 Ne5 16. Bf4 Nxf3+ 17. Bxf3 Ne6 18. Bg4 Qe8 19. Be3 Bf6 20. Rxd6 {0-1 Lettieri,G (2435)-Fedoseev,V (2678) Titled Tuesday intern op 5th May blitz 2020 (3)}) 14... Ne6 {[%emt 0:06:38]} 15. Be3 {[%emt 0:00:00] Against Ned4} Re8 {[%emt 0:17:38]} 16. Nd5 {[%emt 0:00:00]} Bf8 {[%emt 0:01:29]} 17. Qd2 {[%emt 0:05:41]} Nc7 {[%emt 0:08:25]} 18. Nc3 {[%emt 0:05:54]} Qc8 {[%emt 0:04:23]} 19. Qc2 {[%emt 0:08:51]} Ne5 {[%emt 0:09:18]} 20. Nh4 {[%emt 0:00:40]} g6 {[%emt 0:01:29]} 21. Qc1 {[%emt 0:09:07]} Qe6 {[%emt 0:10:40]} 22. Bh6 {[%emt 0:08:29] [#]} Bxh6 $1 {[%emt 0:00:14]} 23. Qxh6 {[%emt 0:00:06]} Rad8 {[%emt 0:00:19]} 24. Qf4 {[%emt 0:05:54] Inhibits Qf6.} (24. Qd2 $17) 24... Qe7 {[%emt 0:00:55] aiming for ...g5.} 25. Nf3 {[%emt 0:00:45]} (25. Qc1 $17 {was worth a try.}) 25... Ne6 {[%emt 0:00:20]} 26. Qe3 {[%emt 0:00:16]} Nxf3+ {[%emt 0:00:41]} 27. Qxf3 {[%emt 0:01:27]} Nd4 {[%emt 0:02:03]} 28. Qd3 {[%emt 0:00:37]} Bc6 {[%emt 0:01:30]} 29. a4 {[%emt 0:00:47]} Qe6 {[%emt 0:01:00]} 30. h4 {[%emt 0:00:38]} h5 {[%emt 0:01:10]} 31. Kh2 {[%emt 0:00:23]} Re7 {[%emt 0:03:14] Black has more active pieces.} ({Black should try} 31... Qb3 32. Rd2 Rd7) 32. f3 {[%emt 0:00:28]} (32. b4 $17) 32... Rde8 {[%emt 0:01:25]} 33. Ne2 {[%emt 0:00:38]} (33. a5 $142) 33... Nxe2 $19 {[%emt 0:01:46]} 34. Qxe2 {[%emt 0:00:01]} d5 {[%emt 0:00:15]} 35. Qd2 {[%emt 0:00:56]} (35. Rd2 $142) 35... dxe4 {[%emt 0:00:16]} 36. fxe4 {[%emt 0:00:01]} Bxe4 {[%emt 0:00:09]} 37. Re1 {[%emt 0:00:22]} Qc6 {[%emt 0:00:30] Threatens to win with ...Bxg2.} 38. Bxe4 {[%emt 0:00:51]} (38. Bf1 Bd5 39. Rxe7 (39. Bb5 $2 Rxe1 40. Rxe1 Rxe1 $19) 39... Rxe7 40. a5) 38... Rxe4 {[%emt 0:00:04] Black is clearly winning.} 39. Rxe4 {[%emt 0:00:05]} Qxe4 {[%emt 0:00:03] KQR-KQR} 40. Kg1 {[%emt 0:00:00]} Qe3+ {[%emt 0:00:00]} 41. Qf2 {[%emt 0:01:43]} a5 {[%emt 0:05:06]} 42. Rf1 {[%emt 0:02:44]} Qxf2+ {[%emt 0:00:39]} 43. Kxf2 {[%emt 0:00:08]} Re4 {[%emt 0:00:02]} 44. Ra1 {[%emt 0:04:22]} Rb4 {[%emt 0:00:03] Repels b3.   Weighted Error Value: White=0.35/Black=0.14 (very precise)} 0-1

[Event "European Women-ch 2023"]
[Site "Petrovac"]
[Date "2023.03.20"]
[Round "3.15"]
[White "Koridze, Lile"]
[Black "Sargsyan, Anna M."]
[Result "1/2-1/2"]
[ECO "D85"]
[WhiteElo "2122"]
[BlackElo "2371"]
[Annotator "TA"]
[PlyCount "53"]
[EventDate "2023.03.15"]
[EventType "swiss"]
[EventCountry "MNE"]
[SourceTitle "playchess.com"]
[Source "ChessBase"]
[SourceQuality "1"]
[TimeControl "40/5400+30:1800+30"]

{[%evp 14,53,16,12,43,36,52,6,11,13,0,0,14,13,23,25,52,39,50,14,47,38,41,19,19,19,19,19,19,21,19,10,9,2,27,24,16,20,19,0,0,0]} 1. d4 {[%emt 0:00:01]} Nf6 {[%emt 0:00:07]} 2. c4 {[%emt 0:00:13]} g6 {[%emt 0:00:05]} 3. Nc3 {[%emt 0:00:04]} d5 {[%emt 0:00:07]} 4. cxd5 {[%emt 0:00:04]} Nxd5 {[%emt 0:00:08]} 5. Bd2 {[%emt 0:00:22]} Bg7 {[%emt 0:00:07]} 6. e4 {[%emt 0:00:23]} Nxc3 {[%emt 0:00:08]} 7. Bxc3 {[%emt 0:00:06]} O-O {[%emt 0:00:42]} 8. Qd2 {[%emt 0:05:47]} c6 {[%emt 0:12:34] D85: Exchange Grünfeld: Unusual White 7th moves and lines with 7 Nf3.} 9. Nf3 {[%emt 0:06:13]} Bg4 {[%emt 0:01:02]} 10. Be2 {[%emt 0:01:49]} (10. Ng5 $14) 10... Nd7 {[%emt 0:01:06]} 11. O-O {[%emt 0:03:34]} e5 {[%emt 0:08:46] [#]} 12. Rfd1 $146 {[%emt 0:06:07][%cal Rf3e5]} ({Predecessor:} 12. d5 Nc5 13. Qe3 cxd5 14. exd5 Qxd5 15. Rfd1 Qe4 16. Qxc5 Qxe2 17. Rd2 Qa6 18. Nxe5 {1-0 Panzer,P (2420)-Schirm,F (2310) Wichern op 2nd 1993 (9)}) 12... Bxf3 {[%emt 0:09:56]} 13. Bxf3 {[%emt 0:00:21]} ({Much weaker is} 13. gxf3 Qh4 14. Qc2 Rae8 $15) 13... exd4 {[%emt 0:00:14]} 14. Bxd4 {[%emt 0:00:10]} Ne5 {[%emt 0:00:08]} 15. Be2 {[%emt 0:02:41] [#] f4 would be deadly.} Qh4 {[%emt 0:01:03]} 16. Qe3 {[%emt 0:14:35]} Rfe8 {[%emt 0:05:50]} 17. g3 {[%emt 0:09:38]} (17. f3 {simplifies} b6 18. Qf2 Qxf2+ 19. Kxf2 Red8 20. Bc3) 17... Qh3 {[%emt 0:02:52]} 18. f4 {[%emt 0:05:06]} Ng4 {[%emt 0:02:07]} 19. Bxg4 {[%emt 0:00:13]} Qxg4 {[%emt 0:00:28]} 20. Bxg7 {[%emt 0:00:16]} Kxg7 {[%emt 0:00:03]} 21. Rd6 {[%emt 0:00:30]} Re6 {[%emt 0:03:26]} 22. Qd4+ {[%emt 0:09:57]} Kg8 {[%emt 0:01:14]} 23. Rd8+ {[%emt 0:00:47]} Rxd8 {[%emt 0:00:31]} 24. Qxd8+ {[%emt 0:00:05]} Kg7 {[%emt 0:00:03]} 25. Qd4+ {[%emt 0:00:21] The position is equal.} Kg8 {[%emt 0:00:02]} 26. Qd8+ {[%emt 0:00:10]} ({But not} 26. Qxa7 Rxe4 27. Rf1 (27. Qxb7 $2 {is the wrong capture.} Re2 $19) 27... Qd7 $15) 26... Kg7 {[%emt 0:00:07]} 27. Qd4+ {[%emt 0:00:04] Weighted Error Value: White=0.11 (very precise) /Black=0.10 (very precise)} 1/2-1/2